fUST/lending_fUST_20250731
["ID","MTS","AMOUNT","RATE_DAILY","PERIOD"]
[376379160,1753955446259,-160.0,0.00019995,2]
[376379161,1753955446268,-160.0,0.00019995,2]
[376379162,1753955446277,-160.0,0.00019995,2]
[376379163,1753955446287,-841.37753757,0.00019995,2]
[376379164,1753955446296,-160.0,0.00019995,2]
[376379165,1753955446305,-214.99831783,0.00019995,2]
[376379166,1753955446314,-160.0,0.00019995,2]
[376379167,1753955446323,-540.24,0.00019999,2]
[376379168,1753955446332,-460.0,0.0002,2]
[376379170,1753955446341,-160.12906897,0.0002,2]
[376379172,1753955446350,-460.0,0.0002,2]
[376379174,1753955446360,-460.0,0.0002,2]
[376379176,1753955446369,-460.0,0.0002,2]
[376379178,1753955446378,-460.0,0.0002,2]
[376379180,1753955446387,-460.0,0.0002,2]
[376379182,1753955446396,-460.0,0.0002,2]
[376379184,1753955446405,-460.0,0.0002,2]
[376379186,1753955446415,-460.0,0.0002,2]
[376379188,1753955446425,-311.78511252,0.0002,2]
[376379190,1753955446434,-460.0,0.0002,2]
[376379192,1753955446443,-460.0,0.0002,2]
[376379194,1753955446452,-460.0,0.0002,2]
[376379196,1753955446461,-460.0,0.0002,2]
[376379198,1753955446469,-460.0,0.0002,2]
[376379200,1753955446478,-404.29429909,0.0002,2]
[376379202,1753955446487,-460.0,0.0002,2]
[376379204,1753955446496,-460.0,0.0002,2]
[376379206,1753955446506,-460.0,0.0002,2]
[376379208,1753955446516,-460.0,0.0002,2]
[376379210,1753955446526,-362.78459057,0.0002,2]
[376379212,1753955446536,-460.0,0.0002,2]
[376379214,1753955446547,-460.0,0.0002,2]
[376379216,1753955446557,-460.0,0.0002,2]
[376379218,1753955446566,-460.0,0.0002,2]
[376379220,1753955446575,-481.33,0.0002,2]
[376379222,1753955446585,-460.0,0.0002,2]
[376379224,1753955446595,-460.0,0.0002,2]
[376379226,1753955446604,-229.14,0.0002,2]
[376379228,1753955446613,-460.0,0.0002,2]
[376379230,1753955446623,-460.0,0.0002,2]
[376379232,1753955446632,-194.33686655,0.0002,2]
[376379234,1753955446642,-460.0,0.0002,2]
[376379236,1753955446652,-460.0,0.0002,2]
[376379239,1753955446661,-460.0,0.0002,2]
[376379241,1753955446671,-460.0,0.0002,2]
[376379243,1753955446680,-460.0,0.0002,2]
[376379245,1753955446689,-460.0,0.0002,2]
[376379246,1753955446699,-460.0,0.0002,2]
[376379248,1753955446708,-460.0,0.0002,2]
[376379250,1753955446718,-191.48,0.0002,2]
[376379253,1753955446728,-460.0,0.0002,2]
[376379254,1753955446737,-460.0,0.0002,2]
[376379256,1753955446747,-460.0,0.0002,2]
[376379259,1753955446757,-460.0,0.0002,2]
[376379261,1753955446766,-460.0,0.0002,2]
[376379263,1753955446775,-984.47,0.0002,2]
[376379264,1753955446785,-460.0,0.0002,2]
[376379267,1753955446795,-460.0,0.0002,2]
[376379269,1753955446805,-694.21,0.0002,2]
[376379270,1753955446815,-460.0,0.0002,2]
[376379273,1753955446825,-460.0,0.0002,2]
[376379275,1753955446835,-460.0,0.0002,2]
[376379277,1753955446844,-509.31,0.0002,2]
[376379279,1753955446854,-460.0,0.0002,2]
[376379281,1753955446863,-440.27256305,0.0002,2]
[376379283,1753955446873,-1115.96,0.0002,2]
[376379285,1753955446883,-460.0,0.0002,2]
[376379287,1753955446894,-460.0,0.0002,2]
[376379289,1753955446908,-508.44,0.0002,2]
[376379291,1753955446917,-460.0,0.0002,2]
[376379293,1753955446926,-460.0,0.0002,2]
[376379295,1753955446936,-460.0,0.0002,2]
[376379297,1753955446945,-553.68,0.0002,2]
[376379299,1753955446954,-460.0,0.0002,2]
[376379301,1753955446963,-1000.0,0.00020021,2]
[376379303,1753955446975,-500.0,0.00020021,2]
[376379305,1753955446984,-500.0,0.00020021,2]
[376379307,1753955446993,-1000.0,0.00020021,2]
[376379309,1753955447003,-160.0,0.00020106,2]
[376379311,1753955447013,-1308.35082662,0.00020141,2]
[376379313,1753955447023,-165.394318,0.00020187,2]
[376379315,1753955447033,-460.0,0.00020273,2]
[376379317,1753955447042,-460.0,0.00020273,2]
[376379319,1753955447052,-460.0,0.00020273,2]
[376379321,1753955447061,-460.0,0.00020273,2]
[376379323,1753955447071,-460.0,0.00020273,2]
[376379325,1753955447081,-460.0,0.00020273,2]
[376379327,1753955447090,-460.0,0.00020273,2]
[376379330,1753955447100,-460.0,0.00020273,2]
[376379332,1753955447109,-460.0,0.00020273,2]
[376379334,1753955447118,-602.43,0.00020273,2]
[376379336,1753955447127,-460.0,0.00020273,2]
[376379337,1753955447136,-180.97,0.00020273,2]
[376379340,1753955447145,-460.0,0.00020273,2]
[376379341,1753955447155,-460.0,0.00020273,2]
[376379344,1753955447165,-460.0,0.00020273,2]
[376379346,1753955447174,-460.0,0.00020273,2]
[376379347,1753955447184,-460.0,0.00020273,2]
[376379349,1753955447193,-460.0,0.00020273,2]
[376379351,1753955447203,-460.0,0.00020273,2]
[376379354,1753955447213,-460.0,0.00020273,2]
[376379356,1753955447223,-460.0,0.00020273,2]
[376379358,1753955447232,-460.0,0.00020273,2]
[376379360,1753955447241,-460.0,0.00020273,2]
[376379362,1753955447251,-460.0,0.00020273,2]
[376379364,1753955447260,-460.0,0.00020273,2]
[376379366,1753955447270,-460.0,0.00020273,2]
[376379367,1753955447280,-460.0,0.00020273,2]
[376379368,1753955447289,-460.0,0.00020273,2]
[376379369,1753955447299,-984.47,0.00020273,2]
[376379370,1753955447309,-694.21,0.00020273,2]
[376379371,1753955447318,-460.0,0.00020273,2]
[376379372,1753955447329,-460.0,0.00020273,2]
[376379373,1753955447339,-1115.96,0.00020273,2]
[376379374,1753955447348,-460.0,0.00020273,2]
[376379375,1753955447358,-460.0,0.00020273,2]
[376379376,1753955447367,-508.44,0.00020273,2]
[376379377,1753955447377,-460.0,0.00020273,2]
[376379378,1753955447386,-460.0,0.00020273,2]
[376379379,1753955447395,-553.68,0.00020273,2]
[376379380,1753955447404,-1308.35082662,0.00020383,3]
[376379381,1753955447413,-501.954866,0.000205,2]
[376379382,1753955447422,-500.0,0.000205,2]
[376379383,1753955447431,-500.0,0.000205,2]
[376379384,1753955447440,-460.0,0.00020547,2]
[376379385,1753955447450,-464.07652316,0.00020547,2]
[376379386,1753955447459,-460.0,0.00020547,2]
[376379388,1753955447468,-460.0,0.00020547,2]
[376379390,1753955447477,-460.0,0.00020547,2]
[376379392,1753955447487,-460.0,0.00020547,2]
[376379394,1753955447496,-507.99,0.00020547,2]
[376379396,1753955447508,-460.0,0.00020547,2]
[376379397,1753955447517,-460.0,0.00020547,2]
[376379399,1753955447527,-460.0,0.00020547,2]
[376379402,1753955447536,-460.0,0.00020547,2]
[376379403,1753955447546,-281.92753612,0.00020547,2]
[376379406,1753955447558,-460.0,0.00020547,2]
[376379408,1753955447567,-460.0,0.00020547,2]
[376379410,1753955447576,-460.0,0.00020547,2]
[376379412,1753955447586,-549.81,0.00020547,2]
[376379414,1753955447596,-181.63424312,0.00020547,2]
[376379416,1753955447605,-460.0,0.00020547,2]
[376379418,1753955447615,-460.0,0.00020547,2]
[376379420,1753955447625,-460.0,0.00020547,2]
[376379422,1753955447635,-460.0,0.00020547,2]
[376379424,1753955447645,-984.47,0.00020547,2]
[376379426,1753955447655,-694.21,0.00020547,2]
[376379428,1753955447664,-460.0,0.00020547,2]
[376379430,1753955447673,-589.72,0.00020547,2]
[376379431,1753955447683,-1115.96,0.00020547,2]
[376379434,1753955447693,-460.0,0.00020547,2]
[376379436,1753955447703,-508.44,0.00020547,2]
[376379438,1753955447712,-460.0,0.00020547,2]
[376379440,1753955447722,-460.0,0.00020547,2]
[376379442,1753955447731,-268.19769114,0.00020548,2]
[376379444,1753955447741,-1308.35082662,0.00020624,3]
[376379446,1753955447751,-420.0,0.00020654,2]
[376379448,1753955447760,-420.0,0.00020686,2]
[376379450,1753955447769,-196.29001035,0.00020701,2]
[376379452,1753955447779,-1567.0,0.00020786,2]
[376379454,1753955447788,-540.24,0.0002082,2]
[376379456,1753955447799,-460.0,0.00020821,2]
[376379458,1753955447808,-460.0,0.00020821,2]
[376379460,1753955447818,-536.01102187,0.00020821,2]
[376379462,1753955447827,-460.0,0.00020821,2]
[376379464,1753955447836,-460.0,0.00020821,2]
[376379466,1753955447845,-460.0,0.00020821,2]
[376379468,1753955447856,-460.0,0.00020821,2]
[376379470,1753955447865,-460.0,0.00020821,2]
[376379472,1753955447875,-460.0,0.00020821,2]
[376379474,1753955447884,-460.0,0.00020821,2]
[376379476,1753955447894,-460.0,0.00020821,2]
[376379478,1753955447906,-460.0,0.00020821,2]
[376379480,1753955447915,-460.0,0.00020821,2]
[376379482,1753955447925,-460.0,0.00020821,2]
[376379484,1753955447934,-460.0,0.00020821,2]
[376379486,1753955447945,-984.47,0.00020821,2]
[376379488,1753955447955,-694.21,0.00020821,2]
[376379490,1753955447964,-460.0,0.00020821,2]
[376379492,1753955447973,-1115.96,0.00020821,2]
[376379494,1753955447985,-460.0,0.00020821,2]
[376379496,1753955447996,-508.44,0.00020821,2]
[376379498,1753955448006,-460.0,0.00020821,2]
[376379500,1753955448016,-460.0,0.00020821,2]
[376379502,1753955448025,-1308.35082662,0.00020866,4]
[376379504,1753955448035,-540.8254181,0.00020989,2]
[376379506,1753955448045,-937.40080138,0.00020989,2]
[376379508,1753955448057,-937.40080138,0.00020989,2]
[376379510,1753955448067,-937.40080138,0.00020989,2]
[376379512,1753955448078,-937.40080138,0.00020989,2]
[376379514,1753955448098,-937.40080138,0.00020989,2]
[376379516,1753955448108,-937.40080138,0.00020989,2]
[376379518,1753955448117,-937.40080138,0.00020989,2]
[376379520,1753955448127,-937.40080138,0.00020989,2]
[376379522,1753955448136,-937.40080138,0.00020989,2]
[376379524,1753955448147,-937.40080138,0.00020989,2]
[376379526,1753955448156,-937.40080138,0.00020989,2]
[376379528,1753955448166,-937.40080138,0.00020989,2]
[376379530,1753955448175,-937.40080138,0.00020989,2]
[376379532,1753955448185,-937.40080138,0.00020989,2]
[376379534,1753955448195,-937.40080138,0.00020989,2]
[376379536,1753955448204,-937.40080138,0.00020989,2]
[376379538,1753955448213,-937.40080138,0.00020989,2]
[376379540,1753955448223,-937.40080138,0.00020989,2]
[376379542,1753955448233,-100000.0,0.0002099,2]
[376379544,1753955448243,-1000.0,0.00021048,2]
[376379546,1753955448252,-505.14148021,0.00021064,2]
[376379548,1753955448262,-521.28,0.00021086,3]
[376379550,1753955448271,-364.1075829,0.00021088,2]
[376379552,1753955448280,-460.0,0.00021095,2]
[376379554,1753955448290,-460.0,0.00021095,2]
[376379556,1753955448301,-460.0,0.00021095,2]
[376379558,1753955448310,-460.0,0.00021095,2]
[376379560,1753955448320,-460.0,0.00021095,2]
[376379562,1753955448330,-460.0,0.00021095,2]
[376379564,1753955448339,-460.0,0.00021095,2]
[376379566,1753955448349,-460.0,0.00021095,2]
[376379568,1753955448359,-460.0,0.00021095,2]
[376379570,1753955448368,-386.43625856,0.00021095,2]
[376379572,1753955448378,-460.0,0.00021095,2]
[376379574,1753955448388,-984.47,0.00021095,2]
[376379586,1753955448494,-694.21,0.00021095,2]
[376379588,1753955448504,-1115.96,0.00021095,2]
[376379590,1753955448513,-460.0,0.00021095,2]
[376379592,1753955448523,-508.44,0.00021095,2]
[376379594,1753955448532,-460.0,0.00021095,2]
[376379596,1753955448542,-460.0,0.00021095,2]
[376379598,1753955448552,-1308.35082662,0.00021107,4]
[376379600,1753955448562,-200.0,0.00021254,15]
[376379602,1753955448572,-200.0,0.00021254,15]
[376379604,1753955448581,-200.0,0.00021254,15]
[376379606,1753955448590,-200.0,0.00021254,15]
[376379607,1753955448600,-320.0,0.00021254,15]
[376379608,1753955448610,-1308.35082662,0.00021348,5]
[376379609,1753955448619,-2085.14,0.00021351,3]
[376379610,1753955448628,-1042.58,0.00021351,3]
[376379611,1753955448638,-522.37270513,0.00021369,2]
[376379612,1753955448647,-460.0,0.00021369,2]
[376379613,1753955448656,-460.0,0.00021369,2]
[376379614,1753955448665,-460.0,0.00021369,2]
[376379615,1753955448675,-460.0,0.00021369,2]
[376379616,1753955448684,-420.9,0.00021369,2]
[376379617,1753955448694,-460.0,0.00021369,2]
[376379618,1753955448703,-460.0,0.00021369,2]
[376379619,1753955448712,-460.0,0.00021369,2]
[376379620,1753955448722,-460.0,0.00021369,2]
[376379621,1753955448732,-984.47,0.00021369,2]
[376379622,1753955448752,-694.21,0.00021369,2]
[376379623,1753955448762,-1115.96,0.00021369,2]
[376379624,1753955448771,-460.0,0.00021369,2]
[376379625,1753955448781,-508.44,0.00021369,2]
[376379626,1753955448790,-460.0,0.00021369,2]
[376379627,1753955448800,-460.0,0.00021369,2]
[376379628,1753955448810,-151.0,0.000214,3]
[376379629,1753955448819,-1308.35082662,0.0002159,5]
[376379630,1753955448829,-1009.14387867,0.00021596,2]
[376379631,1753955448838,-210.61392002,0.00021643,2]
[376379633,1753955448846,-440.27367773,0.00021643,2]
[376379635,1753955448856,-1759.3336162,0.00021643,2]
[376379637,1753955448865,-460.0,0.00021643,2]
[376379639,1753955448874,-460.0,0.00021643,2]
[376379641,1753955448883,-460.0,0.00021643,2]
[376379643,1753955448893,-460.0,0.00021643,2]
[376379645,1753955448906,-460.0,0.00021643,2]
[376379647,1753955448916,-460.0,0.00021643,2]
[376379649,1753955448925,-460.0,0.00021643,2]
[376379651,1753955448934,-460.0,0.00021643,2]
[376379652,1753955448943,-984.47,0.00021643,2]
[376379654,1753955448952,-694.21,0.00021643,2]
[376379656,1753955448962,-1115.96,0.00021643,2]
[376379658,1753955448972,-385.74,0.00021643,2]
[376379660,1753955448982,-508.44,0.00021643,2]
[376379662,1753955448991,-460.0,0.00021643,2]
[376379664,1753955449001,-460.0,0.00021643,2]
[376379667,1753955449011,-250.0,0.0002171,2]
[376379669,1753955449020,-304.704,0.00021713,2]
[376379671,1753955449029,-1308.35082662,0.00021831,6]
[376379673,1753955449039,-1456.43033159,0.00021908,2]
[376379675,1753955449049,-460.0,0.00021917,2]
[376379676,1753955449059,-244.66,0.00021917,2]
[376379678,1753955449068,-460.0,0.00021917,2]
[376379680,1753955449078,-443.49,0.00021917,2]
[376379683,1753955449087,-460.0,0.00021917,2]
[376379684,1753955449097,-460.0,0.00021917,2]
[376379687,1753955449106,-213.47,0.00021917,2]
[376379689,1753955449117,-460.0,0.00021917,2]
[376379691,1753955449126,-984.47,0.00021917,2]
[376379693,1753955449135,-694.21,0.00021917,2]
[376379694,1753955449144,-1115.96,0.00021917,2]
[376379696,1753955449153,-508.44,0.00021917,2]
[376379698,1753955449163,-429.77633369,0.00021917,2]
[376379700,1753955449173,-460.0,0.00021917,2]
[376379702,1753955449182,-151.0,0.00021983,4]
[376379704,1753955449192,-540.24,0.00021984,2]
[376379707,1753955449202,-540.24,0.00021999,2]
[376379708,1753955449212,-2346.57,0.00022,7]
[376379710,1753955449221,-353.51079401,0.00022,2]
[376379712,1753955449231,-27177.72148445,0.00022,3]
[376379714,1753955449240,-151.0,0.00022,6]
[376379716,1753955449249,-165.0,0.00022,2]
[376379718,1753955449259,-161.77,0.00022,2]
[376379720,1753955449268,-460.5085953,0.00022,3]
[376379722,1753955449278,-196.29001035,0.00022051,2]
[376379724,1753955449287,-540.24,0.00022072,2]
[376379726,1753955449295,-1308.35082662,0.00022072,6]
[376379728,1753955449306,-460.0,0.00022191,2]
[376379730,1753955449315,-460.0,0.00022191,2]
[376379732,1753955449325,-460.0,0.00022191,2]
[376379734,1753955449334,-460.0,0.00022191,2]
[376379736,1753955449343,-460.0,0.00022191,2]
[376379738,1753955449352,-984.47,0.00022191,2]
[376379740,1753955449362,-694.21,0.00022191,2]
[376379742,1753955449371,-1115.96,0.00022191,2]
[376379744,1753955449380,-508.44,0.00022191,2]
[376379746,1753955449389,-460.0,0.00022191,2]
[376379748,1753955449398,-1308.35082662,0.00022314,7]
[376379750,1753955449407,-151.0,0.00022347,4]
[376379752,1753955449416,-306.0,0.00022384,2]
[376379754,1753955449425,-2146.0,0.00022427,2]
[376379756,1753955449434,-407.0,0.00022427,2]
[376379758,1753955449442,-635.0,0.00022427,2]
[376379760,1753955449452,-970.0,0.00022427,2]
[376379762,1753955449461,-460.0,0.00022465,2]
[376379764,1753955449470,-460.0,0.00022465,2]
[376379766,1753955449479,-460.0,0.00022465,2]
[376379767,1753955449488,-460.0,0.00022465,2]
[376379769,1753955449497,-460.0,0.00022465,2]
[376379771,1753955449506,-984.47,0.00022465,2]
[376379773,1753955449515,-694.21,0.00022465,2]
[376379775,1753955449524,-1115.96,0.00022465,2]
[376379777,1753955449534,-508.44,0.00022465,2]
[376379779,1753955449543,-460.0,0.00022465,2]
[376379781,1753955449554,-500.0,0.00022473,2]
[376379783,1753955449563,-540.24,0.00022489,2]
[376379784,1753955449572,-540.24,0.00022489,2]
[376379786,1753955449582,-540.24,0.00022489,2]
[376379788,1753955449591,-540.24,0.00022489,2]
[376379790,1753955449600,-540.24,0.00022489,2]
[376379792,1753955449610,-540.24,0.00022489,2]
[376379794,1753955449619,-117671.24466514,0.0002249,7]
[376379796,1753955449628,-540.24,0.00022499,2]
[376379798,1753955449637,-540.24,0.00022499,2]
[376379800,1753955449646,-540.24,0.00022499,2]
[376379802,1753955449655,-540.24,0.00022499,2]
[376379804,1753955449665,-540.39193083,0.00022499,2]
[376379806,1753955449674,-150.0,0.000225,2]
[376379808,1753955449682,-1442.43,0.000225,7]
[376379809,1753955449692,-13104.39,0.000225,7]
[376379811,1753955449702,-587.0,0.00022548,2]
[376379813,1753955449711,-1308.35082662,0.00022555,7]
[376379816,1753955449721,-161.77,0.00022562,2]
[376379817,1753955449730,-889.55,0.000226,2]
[376379818,1753955449740,-151.0,0.000226,7]
[376379819,1753955449750,-151.0,0.00022712,5]
[376379820,1753955449759,-3273.69127783,0.00022727,2]
[376379821,1753955449768,-460.0,0.00022739,2]
[376379822,1753955449777,-460.0,0.00022739,2]
[376379824,1753955449787,-460.0,0.00022739,2]
[376379826,1753955449796,-460.0,0.00022739,2]
[376379828,1753955449807,-460.0,0.00022739,2]
[376379830,1753955449815,-984.47,0.00022739,2]
[376379832,1753955449825,-694.21,0.00022739,2]
[376379834,1753955449834,-1115.96,0.00022739,2]
[376379836,1753955449844,-508.44,0.00022739,2]
[376379838,1753955449853,-190.10393168,0.00022739,2]
[376379839,1753955449863,-500.0,0.00022767,2]
[376379840,1753955449872,-1308.35082662,0.00022797,7]
[376379841,1753955449881,-160.0,0.00023,2]
[376379842,1753955449890,-160.0,0.00023,3]
[376379843,1753955449902,-332.53310912,0.00023,2]
[376379844,1753955449911,-460.0,0.00023013,2]
[376379845,1753955449920,-460.0,0.00023013,2]
[376379846,1753955449929,-523.76,0.00023013,2]
[376379847,1753955449938,-460.0,0.00023013,2]
[376379848,1753955449948,-359.82,0.00023013,2]
[376379849,1753955449957,-984.47,0.00023013,2]
[376379850,1753955449966,-694.21,0.00023013,2]
[376379851,1753955449976,-1115.96,0.00023013,2]
[376379852,1753955449985,-508.44,0.00023013,2]
[376379853,1753955449995,-1308.35082662,0.00023038,8]
[376379854,1753955450004,-151.0,0.00023077,5]
[376379855,1753955450014,-161.77,0.00023123,2]
[376379856,1753955450023,-1261.98581898,0.00023147,2]
[376379857,1753955450033,-151.0,0.000232,5]
[376379858,1753955450043,-1308.35082662,0.00023279,8]
[376379860,1753955450054,-500.0,0.00023287,2]
[376379862,1753955450064,-460.0,0.00023287,2]
[376379864,1753955450074,-460.0,0.00023287,2]
[376379866,1753955450083,-460.0,0.00023287,2]
[376379868,1753955450092,-984.47,0.00023287,2]
[376379870,1753955450101,-694.21,0.00023287,2]
[376379872,1753955450111,-1115.96,0.00023287,2]
[376379874,1753955450120,-508.44,0.00023287,2]
[376379876,1753955450130,-200.0,0.00023339,15]
[376379878,1753955450139,-200.0,0.00023339,15]
[376379880,1753955450148,-200.0,0.00023339,15]
[376379882,1753955450158,-200.0,0.00023339,15]
[376379884,1753955450168,-200.0,0.00023339,15]
[376379886,1753955450177,-200.0,0.00023339,15]
[376379888,1753955450186,-366.0,0.00023339,15]
[376379890,1753955450195,-196.29001035,0.000234,2]
[376379892,1753955450205,-7613.19082743,0.000234,2]
[376379894,1753955450215,-151.0,0.00023441,5]
[376379896,1753955450224,-1308.35082662,0.00023521,9]
[376379898,1753955450234,-460.0,0.00023561,2]
[376379900,1753955450243,-460.0,0.00023561,2]
[376379902,1753955450252,-600.46,0.00023561,2]
[376379904,1753955450261,-984.47,0.00023561,2]
[376379906,1753955450270,-694.21,0.00023561,2]
[376379907,1753955450279,-1115.96,0.00023561,2]
[376379909,1753955450288,-508.44,0.00023561,2]
[376379911,1753955450297,-2200.0,0.00023656,2]
[376379914,1753955450307,-151.01077,0.00023662,2]
[376379916,1753955450317,-161.77,0.00023685,2]
[376379917,1753955450326,-2346.57,0.000237,7]
[376379919,1753955450335,-151.0,0.000237,7]
[376379921,1753955450345,-151.0,0.000237,7]
[376379923,1753955450354,-151.0,0.000237,7]
[376379925,1753955450363,-151.0,0.000237,7]
[376379927,1753955450372,-151.0,0.000237,7]
[376379929,1753955450381,-156.35794,0.00023706,2]
[376379931,1753955450389,-632.6,0.00023734,7]
[376379933,1753955450399,-153.0,0.00023753,2]
[376379935,1753955450408,-153.0,0.00023753,2]
[376379937,1753955450418,-153.0,0.00023753,2]
[376379939,1753955450427,-1308.35082662,0.00023762,9]
[376379941,1753955450436,-1442.43,0.000238,7]
[376379943,1753955450445,-13104.39,0.000238,7]
[376379945,1753955450455,-151.0,0.000238,7]
[376379947,1753955450464,-151.0,0.00023806,5]
[376379949,1753955450473,-632.6,0.00023834,7]
[376379951,1753955450482,-527.72,0.00023835,2]
[376379953,1753955450491,-535.0095233,0.00023835,2]
[376379955,1753955450501,-984.47,0.00023835,2]
[376379957,1753955450510,-694.21,0.00023835,2]
[376379958,1753955450519,-1115.96,0.00023835,2]
[376379960,1753955450528,-508.44,0.00023835,2]
[376379962,1753955450537,-675.13619643,0.000239,2]
[376379964,1753955450547,-632.6,0.00023934,7]
[376379966,1753955450558,-168.0,0.00023956,2]
[376379968,1753955450567,-151.0,0.00024,5]
[376379970,1753955450578,-160.0,0.00024,7]
[376379972,1753955450587,-1308.35082662,0.00024003,10]
[376379974,1753955450597,-306.0,0.00024027,2]
[376379976,1753955450607,-632.6,0.00024034,7]
[376379978,1753955450616,-500.0,0.0002408,2]
[376379980,1753955450625,-500.0,0.00024107,2]
[376379981,1753955450635,-984.47,0.00024109,2]
[376379983,1753955450645,-694.21,0.00024109,2]
[376379985,1753955450654,-1115.96,0.00024109,2]
[376379987,1753955450663,-508.44,0.00024109,2]
[376379989,1753955450672,-632.6,0.00024134,7]
[376379991,1753955450683,-832.517356,0.00024152,2]
[376379993,1753955450692,-500.0,0.00024164,2]
[376379995,1753955450701,-151.0,0.00024171,6]
[376379997,1753955450710,-600.0,0.00024174,2]
[376379999,1753955450719,-500.0,0.00024186,2]
[376380001,1753955450729,-500.0,0.00024207,2]
[376380003,1753955450738,-168.0,0.00024213,2]
[376380005,1753955450747,-632.6,0.00024234,7]
[376380007,1753955450757,-168.0,0.00024235,2]
[376380009,1753955450766,-1308.35082662,0.00024245,10]
[376380011,1753955450775,-161.77,0.00024247,2]
[376380013,1753955450784,-600.0,0.00024282,2]
[376380015,1753955450794,-151.0,0.000243,6]
[376380017,1753955450805,-500.0,0.00024306,2]
[376380019,1753955450813,-151.01077,0.00024307,8]
[376380020,1753955450822,-168.0,0.00024311,2]
[376380022,1753955450832,-151.01077,0.0002433,3]
[376380024,1753955450840,-632.6,0.00024334,7]
[376380026,1753955450849,-600.0,0.0002434,2]
[376380028,1753955450858,-500.0,0.00024357,2]
[376380030,1753955450867,-500.0,0.00024378,2]
[376380032,1753955450876,-151.0,0.00024383,7]
[376380034,1753955450887,-984.47,0.00024383,2]
[376380036,1753955450896,-694.21,0.00024383,2]
[376380038,1753955450906,-1115.96,0.00024383,2]
[376380040,1753955450916,-508.44,0.00024383,2]
[376380042,1753955450925,-168.0,0.00024385,2]
[376380053,1753955451025,-500.0,0.00024392,2]
[376380055,1753955451034,-151.0,0.00024399,7]
[376380057,1753955451044,-151.0,0.00024399,7]
[376380059,1753955451054,-151.0,0.000244,5]
[376380061,1753955451063,-600.0,0.00024403,2]
[376380063,1753955451072,-500.0,0.00024407,2]
[376380065,1753955451081,-168.0,0.00024414,2]
[376380067,1753955451090,-500.0,0.00024415,2]
[376380069,1753955451099,-600.0,0.00024418,2]
[376380071,1753955451108,-632.6,0.00024434,7]
[376380073,1753955451117,-500.0,0.00024439,2]
[376380075,1753955451126,-600.0,0.00024472,2]
[376380078,1753955451136,-301.991303,0.00024486,7]
[376380080,1753955451145,-151.0,0.00024486,7]
[376380082,1753955451154,-1308.35082662,0.00024486,11]
[376380084,1753955451163,-632.6,0.00024534,7]
[376380086,1753955451172,-151.0,0.00024535,6]
[376380087,1753955451181,-150.0,0.00024537,30]
[376380089,1753955451190,-168.0,0.00024544,2]
[376380091,1753955451198,-500.0,0.00024572,2]
[376380093,1753955451207,-823.0,0.00024578,2]